bitfinex-derivatives/quotes_BTCF0:USTF0_20241224
["timestamp","ask_amount","ask_price","bid_price","bid_amount"]
[1735026004116,0.09936223,94181.0,94176.0,0.413968]
[1735026004417,0.004,94181.0,94176.0,0.413968]
[1735026004810,0.004,94181.0,94176.0,0.3608]
[1735026005119,0.004,94181.0,94178.0,0.053167]
[1735026006106,0.004,94181.0,94176.0,0.3608]
[1735026006306,0.053167,94179.0,94170.0,0.053171]
[1735026007710,0.004,94179.0,94169.0,0.10837672]
[1735026008229,0.012,94179.0,94177.0,0.413968]
[1735026008412,0.012,94179.0,94177.0,0.053168]
[1735026009721,0.008,94179.0,94177.0,0.053168]
[1735026009921,0.012,94179.0,94177.0,0.053168]
[1735026010808,0.013,94179.0,94177.0,0.053168]
[1735026011012,0.013,94179.0,94177.0,0.054168]
[1735026017724,0.013,94179.0,94178.0,0.01596]
[1735026018426,0.013,94179.0,94177.0,0.054168]
[1735026018727,0.013,94179.0,94178.0,0.01596]
[1735026019232,0.013,94179.0,94178.0,0.01696]
[1735026019427,0.013,94179.0,94178.0,0.001]
[1735026020731,0.013,94179.0,94177.0,0.054168]
[1735026021028,0.013,94179.0,94177.0,0.053168]
[1735026021228,0.013,94179.0,94178.0,0.001]
[1735026022130,0.013,94179.0,94177.0,0.053168]
[1735026022131,0.005,94179.0,94177.0,0.053168]
[1735026022437,0.013,94179.0,94177.0,0.054168]
[1735026023622,0.013,94179.0,94177.0,0.053168]
[1735026023829,0.013,94179.0,94178.0,0.001]
[1735026024333,0.013,94179.0,94177.0,0.054168]
[1735026024830,0.013,94179.0,94178.0,0.001]
[1735026025429,0.013,94179.0,94177.0,0.054168]
[1735026026934,0.013,94179.0,94178.0,0.001]
[1735026027940,0.005,94179.0,94177.0,0.053168]
[1735026028229,0.013,94179.0,94177.0,0.054168]
[1735026028650,0.013,94179.0,94178.0,0.001]
[1735026028941,0.10836223,94179.0,94178.0,0.001]
[1735026030125,0.10836223,94179.0,94177.0,0.054168]
[1735026030327,0.013,94179.0,94177.0,0.054168]
[1735026030530,0.005,94179.0,94177.0,0.053168]
[1735026030738,0.013,94179.0,94178.0,0.001]
[1735026031039,0.013,94179.0,94177.0,0.053168]
[1735026031246,0.013,94179.0,94177.0,0.054168]
[1735026032840,0.09562123,94178.0,94177.0,0.054168]
[1735026034046,0.10062123,94178.0,94177.0,0.054168]
[1735026034230,0.10062123,94178.0,94177.0,0.053168]
[1735026035541,0.005,94178.0,94177.0,0.58732939]
[1735026036640,0.005,94178.0,94177.0,0.3716106]
[1735026037144,0.0377,94190.0,94188.0,0.053162]
[1735026037330,0.1597558,94191.0,94190.0,0.053161]
[1735026037530,0.15919579,94191.0,94190.0,0.053161]
[1735026037745,0.15919579,94191.0,94190.0,0.069121]
[1735026038043,0.15919579,94191.0,94190.0,0.18449699]
[1735026038242,0.1145,94205.0,94200.0,0.053155]
[1735026038243,0.15919579,94201.0,94200.0,0.053155]
[1735026038444,0.15919579,94201.0,94200.0,0.413955]
[1735026038634,0.15919579,94201.0,94200.0,0.54397739]
[1735026039941,0.16319579,94201.0,94200.0,0.54397739]
[1735026040445,0.0354,94216.0,94215.0,0.053147]
[1735026041144,0.19489579,94225.0,94224.0,0.053142]
[1735026041756,0.19489579,94225.0,94224.0,0.413942]
[1735026042138,0.0357,94225.0,94224.0,0.413942]
[1735026042743,0.0357,94225.0,94224.0,0.415942]
[1735026043145,0.0357,94225.0,94224.0,0.416942]
[1735026043339,0.0357,94225.0,94224.0,0.41862775]
[1735026044041,0.0357,94225.0,94217.0,0.053145]
[1735026044245,0.3608,94221.0,94215.0,0.10837843]
[1735026044444,0.0357,94225.0,94220.0,0.053144]
[1735026045249,0.3608,94221.0,94220.0,0.053144]
[1735026045850,0.0357,94225.0,94223.0,0.053142]
[1735026045851,0.0407,94225.0,94223.0,0.053142]
[1735026046350,0.0357,94225.0,94223.0,0.053142]
[1735026047440,0.0357,94225.0,94223.0,0.054142]
[1735026048850,0.0357,94225.0,94223.0,0.055142]
[1735026057853,0.0357,94225.0,94224.0,0.01592]
[1735026058455,0.0357,94225.0,94223.0,0.055142]
[1735026058958,0.0357,94225.0,94224.0,0.01692]
[1735026059357,0.0357,94225.0,94224.0,0.01792]
[1735026059560,0.0357,94225.0,94224.0,0.01692]
[1735026059759,0.0357,94225.0,94224.0,0.01592]
[1735026060449,0.0357,94225.0,94224.0,0.01692]
[1735026061345,0.0357,94225.0,94224.0,0.01792]
[1735026063261,0.0357,94225.0,94224.0,0.002]
[1735026067165,0.0357,94225.0,94224.0,0.055142]
[1735026067364,0.0356,94227.0,94224.0,0.002]
[1735026067558,0.0356,94227.0,94226.0,0.05314]
[1735026069255,0.0356,94227.0,94226.0,0.05414]
[1735026070164,0.0356,94227.0,94226.0,0.30637686]
[1735026070558,0.0356,94227.0,94226.0,0.30737686]
[1735026071269,0.0356,94227.0,94226.0,0.05514]
[1735026071270,0.16235166,94227.0,94226.0,0.05514]
[1735026072375,0.16235166,94227.0,94226.0,0.002]
[1735026073167,0.16235166,94227.0,94225.0,0.25223686]
[1735026073469,0.05314,94226.0,94225.0,0.25223686]
[1735026074077,0.05314,94226.0,94221.0,0.25223686]
[1735026074366,0.05314,94226.0,94225.0,0.001]
[1735026075166,0.05314,94226.0,94221.0,0.25323686]
[1735026075475,0.05314,94226.0,94222.0,0.25223686]
[1735026075661,0.3608,94224.0,94222.0,0.25223686]
[1735026076874,0.3608,94224.0,94223.0,0.25223686]
[1735026077567,0.3608,94224.0,94223.0,0.14103686]
[1735026077768,0.3608,94224.0,94223.0,0.02983686]
[1735026077975,0.053142,94223.0,94215.0,0.31615415]
[1735026078270,0.413946,94216.0,94215.0,0.31615415]
[1735026078664,0.413946,94216.0,94215.0,0.26055415]
[1735026078872,0.413946,94216.0,94215.0,0.20495415]
[1735026079174,0.053151,94208.0,94207.0,0.37956651]
[1735026079371,0.413951,94208.0,94207.0,0.37956651]
[1735026079677,0.3608,94208.0,94196.0,0.0008]
[1735026079973,0.3608,94208.0,94193.0,0.069119]
[1735026079974,0.3608,94198.0,94193.0,0.069119]
[1735026080971,0.3608,94198.0,94196.0,0.001]
[1735026081586,0.3618,94198.0,94193.0,0.069119]
[1735026082572,0.3668,94198.0,94193.0,0.069119]
[1735026083075,0.3658,94198.0,94193.0,0.069119]
[1735026083274,0.3648,94198.0,94193.0,0.069119]
[1735026083573,0.3668,94198.0,94193.0,0.069119]
[1735026083783,0.3668,94198.0,94193.0,0.01596]
[1735026084163,0.3658,94198.0,94194.0,0.053158]
[1735026085363,0.3618,94198.0,94194.0,0.053158]
[1735026085565,0.3658,94198.0,94194.0,0.053158]
[1735026085977,0.3618,94198.0,94194.0,0.053158]
[1735026086169,0.3658,94198.0,94194.0,0.053158]
[1735026086565,0.3618,94198.0,94191.0,0.03443654]
[1735026086866,0.3658,94198.0,94191.0,0.03443654]
[1735026087077,0.3668,94198.0,94191.0,0.08759654]
[1735026087271,0.3668,94198.0,94191.0,0.03443654]
[1735026087770,0.053159,94194.0,94191.0,0.03443654]
[1735026089561,0.054159,94194.0,94191.0,0.03443654]
[1735026089876,0.058159,94194.0,94191.0,0.03443654]
[1735026090771,0.057159,94194.0,94191.0,0.03443654]
[1735026090973,0.058159,94194.0,94191.0,0.03443654]
[1735026092573,0.005,94194.0,94191.0,0.03443654]
[1735026098583,0.005,94194.0,94193.0,0.053159]
[1735026100174,0.004,94194.0,94193.0,0.053159]
[1735026100383,0.006,94194.0,94193.0,0.053159]
[1735026107079,0.13331701,94194.0,94193.0,0.053159]
[1735026108087,0.006,94194.0,94193.0,0.24297869]
[1735026110687,0.006,94194.0,94193.0,0.053159]
[1735026111780,0.15914627,94196.0,94193.0,0.053159]
[1735026112089,0.003,94194.0,94193.0,0.053159]
[1735026112878,0.001,94194.0,94193.0,0.053159]
[1735026113776,0.002,94196.0,94193.0,0.053159]
[1735026114089,0.003,94196.0,94193.0,0.053159]
[1735026114597,0.002,94194.0,94193.0,0.053159]
[1735026114784,0.003,94194.0,94193.0,0.053159]
[1735026115592,0.002,94194.0,94193.0,0.053159]
[1735026115777,0.003,94196.0,94193.0,0.053159]
[1735026116386,0.002,94194.0,94193.0,0.053159]
[1735026117288,0.003,94194.0,94193.0,0.053159]
[1735026117887,0.001,94194.0,94193.0,0.053159]
[1735026118993,0.003,94194.0,94193.0,0.053159]
[1735026124899,0.053159,94193.0,94191.0,0.00013654]
[1735026125225,0.413959,94193.0,94191.0,0.00013654]
[1735026125387,0.413959,94193.0,94176.0,0.37956651]
[1735026125388,0.053164,94185.0,94176.0,0.37956651]
[1735026125590,0.413964,94185.0,94176.0,0.37956651]
[1735026126003,0.053168,94177.0,94176.0,0.37956651]
[1735026126194,0.413968,94177.0,94176.0,0.37956651]
[1735026126392,0.41405878,94177.0,94176.0,0.37956651]
[1735026126599,0.053177,94161.0,94159.0,0.44575697]
[1735026126804,0.3608,94160.0,94159.0,0.44495697]
[1735026127002,0.3608,94160.0,94156.0,0.0366]
[1735026127995,0.3608,94160.0,94159.0,0.002]
[1735026130003,0.3608,94160.0,94156.0,0.0366]
[1735026130299,0.48902274,94160.0,94156.0,0.0366]
[1735026131706,0.3608,94160.0,94156.0,0.0366]
[1735026136412,0.3608,94160.0,94149.0,0.053184]
[1735026136607,0.3608,94152.0,94149.0,0.053184]
[1735026137606,0.3608,94152.0,94151.0,0.053183]
[1735026138706,0.3608,94152.0,94151.0,0.069143]
[1735026138905,0.3608,94152.0,94151.0,0.072143]
[1735026139508,0.3608,94152.0,94151.0,0.073143]
[1735026139718,0.3608,94162.0,94154.0,0.053181]
[1735026141019,0.3608,94162.0,94154.0,0.054181]
[1735026142021,0.3608,94162.0,94154.0,0.055181]
[1735026142618,0.3608,94162.0,94154.0,0.002]
[1735026142823,0.053178,94159.0,94154.0,0.002]
[1735026143121,0.053179,94158.0,94154.0,0.002]
[1735026143719,0.3608,94161.0,94154.0,0.002]
[1735026145728,0.413977,94161.0,94154.0,0.002]
[1735026146321,0.053178,94160.0,94154.0,0.002]
[1735026148228,0.053178,94160.0,94154.0,0.001]
[1735026148427,0.053178,94160.0,94154.0,0.002]
[1735026150731,0.05318,94156.0,94154.0,0.002]
[1735026151834,0.05318,94156.0,94154.0,0.001]
[1735026152034,0.05318,94156.0,94154.0,0.002]
[1735026152234,0.05318,94156.0,94154.0,0.001]
[1735026152435,0.05318,94156.0,94154.0,0.002]
[1735026152831,0.05318,94156.0,94144.0,0.00011281]
[1735026153133,0.413986,94145.0,94144.0,0.00011281]
[1735026153929,0.413986,94145.0,94144.0,0.00611281]
[1735026154331,0.413986,94145.0,94144.0,0.00896054]
[1735026154533,0.414986,94145.0,94144.0,0.009]
[1735026156146,0.57411224,94145.0,94144.0,0.009]
[1735026156936,0.47221814,94145.0,94144.0,0.009]
[1735026158237,0.414986,94145.0,94144.0,0.009]
[1735026159837,0.57416023,94145.0,94144.0,0.009]
[1735026161143,0.414986,94145.0,94144.0,0.009]
[1735026169941,0.3618,94145.0,94144.0,0.009]
[1735026170142,0.3618,94145.0,94144.0,0.0472]
[1735026178345,0.52097423,94145.0,94144.0,0.0472]
[1735026178749,0.52097423,94145.0,94144.0,0.009]
[1735026178750,0.57416023,94145.0,94144.0,0.009]
[1735026179652,0.47222086,94145.0,94144.0,0.009]
[1735026188851,0.66319638,94145.0,94144.0,0.009]
[1735026190768,0.61001038,94145.0,94144.0,0.009]
[1735026191158,0.41903486,94145.0,94144.0,0.009]
[1735026225992,0.61045777,94145.0,94144.0,0.009]
[1735026227197,0.41903486,94145.0,94144.0,0.009]
[1735026227395,0.41903486,94145.0,94133.0,0.2912977]
[1735026227597,0.053192,94135.0,94133.0,0.2912977]
[1735026228503,0.053192,94135.0,94133.0,0.2962977]
[1735026228693,0.15949186,94134.0,94133.0,0.0528]
[1735026230801,0.16049186,94134.0,94133.0,0.0478]
[1735026231000,0.16049186,94134.0,94133.0,0.0528]
[1735026231705,0.001,94134.0,94133.0,0.0528]
[1735026234008,0.16049186,94134.0,94133.0,0.0528]
[1735026235416,0.001,94134.0,94133.0,0.0528]
[1735026251829,0.16049186,94134.0,94133.0,0.0528]
[1735026252730,0.001,94134.0,94133.0,0.105993]
[1735026254328,0.16049186,94134.0,94133.0,0.105993]
[1735026256531,0.001,94134.0,94133.0,0.105993]
[1735026257435,0.001,94134.0,94133.0,0.0528]
[1735026257925,0.06149689,94134.0,94133.0,0.0528]
[1735026258923,0.06149689,94134.0,94133.0,0.014]
[1735026259230,0.11468889,94134.0,94133.0,0.014]
[1735026259929,0.1113646,94134.0,94133.0,0.014]
[1735026260123,0.0581726,94134.0,94133.0,0.014]
[1735026260934,0.06149697,94134.0,94133.0,0.014]
[1735026261630,0.06149697,94134.0,94133.0,0.012]
[1735026262041,0.0581726,94134.0,94133.0,0.012]
[1735026270529,0.001,94134.0,94133.0,0.012]
[1735026278550,0.16049266,94134.0,94133.0,0.012]
[1735026279749,0.001,94134.0,94133.0,0.012]
[1735026295458,0.16049176,94134.0,94133.0,0.012]
[1735026296358,0.001,94134.0,94133.0,0.012]
[1735026298459,0.16049977,94134.0,94133.0,0.012]
[1735026299766,0.001,94134.0,94133.0,0.012]
[1735026300960,0.16049977,94134.0,94133.0,0.012]
[1735026301866,0.05822212,94134.0,94133.0,0.012]
[1735026303156,0.001,94134.0,94133.0,0.012]
[1735026303849,0.05822212,94134.0,94133.0,0.012]
[1735026307066,0.3608,94158.0,94133.0,0.7905697]
[1735026307358,0.3608,94158.0,94153.0,0.053181]
[1735026307663,0.3608,94158.0,94145.0,0.43198804]
[1735026307664,0.09704904,94156.0,94155.0,0.05318]
[1735026308060,0.07118804,94170.0,94154.0,0.0782]
[1735026308247,0.17485789,94179.0,94154.0,0.0782]
[1735026308455,0.07118804,94170.0,94161.0,0.053177]
[1735026308651,0.00010557,94169.0,94161.0,0.053177]
[1735026309362,0.15926655,94166.0,94161.0,0.053177]
[1735026310161,0.21454512,94169.0,94161.0,0.053177]
[1735026310961,0.002,94166.0,94162.0,0.053176]
[1735026311563,0.1272917,94163.0,94162.0,0.053176]
[1735026312755,0.003,94163.0,94162.0,0.053176]
[1735026313257,0.005,94163.0,94162.0,0.053176]
[1735026314560,0.002,94163.0,94162.0,0.053176]
[1735026314762,0.005,94163.0,94162.0,0.053176]
[1735026318565,0.053177,94162.0,94156.0,0.05318]
[1735026320279,0.3608,94161.0,94156.0,0.05318]
[1735026320475,0.053183,94150.0,94149.0,0.19022077]
[1735026320669,0.413983,94150.0,94149.0,0.19022077]
[1735026321375,0.41730707,94150.0,94149.0,0.19022077]
[1735026322063,0.41730707,94150.0,94149.0,0.001]
[1735026322468,0.41730707,94150.0,94140.0,0.07118804]
[1735026322469,0.36412407,94150.0,94140.0,0.07118804]
[1735026322681,0.3608,94141.0,94140.0,0.07118804]
[1735026322982,0.3608,94141.0,94137.0,0.053191]
[1735026323373,0.3608,94141.0,94138.0,0.05319]
[1735026323781,0.3608,94141.0,94140.0,0.002]
[1735026324168,0.3608,94141.0,94140.0,0.007]
[1735026324579,0.3608,94141.0,94140.0,0.002]
[1735026324784,0.45715384,94141.0,94140.0,0.002]
[1735026325376,0.45615384,94141.0,94140.0,0.005]
[1735026325768,0.3608,94141.0,94140.0,0.005]
[1735026326377,0.3608,94141.0,94140.0,0.007]
[1735026329175,0.09535384,94143.0,94140.0,0.007]
[1735026329382,0.09535384,94143.0,94142.0,0.3608]
[1735026331182,0.09535384,94154.0,94142.0,0.3608]
[1735026331482,0.09535384,94154.0,94144.0,0.07118804]
[1735026331683,0.09535384,94154.0,94145.0,0.0408]
[1735026332287,0.14853484,94154.0,94145.0,0.0408]
[1735026333078,0.14853484,94154.0,94145.0,0.0418]
[1735026333391,0.053182,94152.0,94145.0,0.0418]
[1735026334281,0.053182,94152.0,94145.0,0.0438]
[1735026334673,0.053182,94152.0,94145.0,0.0428]
[1735026334876,0.053182,94152.0,94145.0,0.0438]
[1735026334877,0.09535384,94151.0,94145.0,0.0438]
[1735026336188,0.09535384,94150.0,94145.0,0.0438]
[1735026337577,0.09535384,94150.0,94145.0,0.001]
[1735026337885,0.053186,94146.0,94145.0,0.003]
[1735026340394,0.053186,94146.0,94130.0,7.1e-07]
[1735026340395,0.71739263,94146.0,94130.0,7.1e-07]
[1735026340693,0.71739263,94146.0,94125.0,0.14485917]
[1735026340694,0.413994,94131.0,94125.0,0.14485917]
[1735026340884,0.3608,94126.0,94125.0,0.14485917]
[1735026341082,0.36412377,94126.0,94125.0,0.14485917]
[1735026341282,0.41732077,94126.0,94113.0,0.37896491]
[1735026341593,0.414,94120.0,94113.0,0.37896491]
[1735026341897,0.414,94120.0,94101.0,0.44591697]
[1735026341898,0.05321,94102.0,94101.0,0.00096]
[1735026342090,0.05321,94102.0,94096.0,0.0401]
[1735026343981,0.3608,94103.0,94099.0,0.053212]
[1735026344391,0.3608,94103.0,94100.0,0.104]
[1735026344881,0.001,94102.0,94100.0,0.108]
[1735026345283,0.001,94102.0,94100.0,0.104]
[1735026345493,0.3618,94103.0,94100.0,0.108]
[1735026347389,0.001,94102.0,94100.0,0.106]
[1735026347699,0.001,94102.0,94100.0,0.11]
[1735026348102,0.36244,94103.0,94100.0,0.11]
[1735026348293,0.3618,94103.0,94100.0,0.11]
[1735026349098,0.3608,94103.0,94100.0,0.104]
[1735026349399,0.001,94102.0,94100.0,0.11]
[1735026350596,0.3608,94103.0,94100.0,0.104]
[1735026351906,0.001,94102.0,94100.0,0.11]
[1735026352203,0.3608,94103.0,94100.0,0.104]
[1735026352388,0.3618,94103.0,94100.0,0.11]
[1735026353597,0.001,94103.0,94102.0,0.41401]
[1735026353889,0.001,94103.0,94102.0,0.52464488]
[1735026354902,0.001,94103.0,94102.0,0.83064488]
[1735026355707,0.36088555,94120.0,94102.0,0.83464488]
[1735026355904,0.36088555,94120.0,94116.0,0.053202]
[1735026356095,0.36088555,94120.0,94117.0,0.0376]
[1735026356495,8.555e-05,94120.0,94117.0,0.0376]
[1735026357395,8.555e-05,94120.0,94117.0,0.090802]
[1735026357996,8.555e-05,94120.0,94118.0,0.01596]
[1735026358408,8.555e-05,94120.0,94119.0,0.01596]
[1735026373110,8.555e-05,94120.0,94119.0,0.37676]
[1735026373305,8.555e-05,94120.0,94119.0,0.48902142]
[1735026374008,0.12709249,94127.0,94126.0,0.053197]
[1735026374516,0.12709249,94127.0,94126.0,0.17184232]
[1735026375035,0.12720274,94127.0,94126.0,0.17184232]
[1735026375908,0.00011025,94127.0,94126.0,0.17184232]
[1735026377820,0.00011025,94127.0,94126.0,0.18780232]
[1735026378412,0.00011025,94127.0,94126.0,0.17184232]
[1735026378611,0.00011025,94127.0,94126.0,0.18780232]
[1735026385613,0.12709249,94134.0,94126.0,0.18780232]
[1735026385814,0.15886562,94141.0,94126.0,0.18780232]
[1735026385815,0.15886562,94141.0,94140.0,0.053189]
[1735026386315,0.15886562,94141.0,94140.0,0.16745102]
[1735026386625,0.01077361,94157.0,94140.0,0.16745102]
[1735026386626,0.15886562,94154.0,94151.0,0.053183]
[1735026387737,0.3698,94152.0,94151.0,0.054183]
[1735026389023,0.009,94152.0,94151.0,0.054183]
[1735026390023,0.014,94152.0,94151.0,0.054183]
[1735026391721,0.014,94152.0,94151.0,0.414983]
[1735026398825,0.014,94152.0,94151.0,0.054183]
[1735026408045,0.014,94152.0,94151.0,0.17396931]
[1735026409035,0.0393,94164.0,94151.0,0.12078631]
[1735026409243,0.0393,94164.0,94162.0,0.053176]
[1735026410229,0.0453,94164.0,94162.0,0.053176]
[1735026410839,0.0393,94164.0,94162.0,0.053176]
[1735026411236,0.0413,94164.0,94162.0,0.053176]
[1735026412040,0.0393,94164.0,94162.0,0.054176]
[1735026412831,0.24833662,94172.0,94169.0,0.053173]
[1735026412832,0.15886562,94170.0,94169.0,0.053173]
[1735026414038,0.19516562,94172.0,94162.0,0.001]
[1735026414337,0.19516562,94172.0,94171.0,0.053171]
[1735026415046,0.10379421,94172.0,94171.0,0.053171]
[1735026415542,0.10579421,94172.0,94171.0,0.053171]
[1735026415844,0.10911724,94172.0,94160.0,0.10844042]
[1735026416044,0.10679421,94172.0,94171.0,0.053171]
[1735026416340,0.05005829,94172.0,94171.0,0.053171]
[1735026416644,0.05338132,94172.0,94171.0,0.053171]
[1735026416843,0.05005829,94172.0,94171.0,0.053171]
[1735026417237,0.01708132,94172.0,94171.0,0.053171]
[1735026417434,0.01375829,94172.0,94171.0,0.053171]
[1735026417738,0.06949421,94172.0,94171.0,0.053171]
[1735026417946,0.07381724,94172.0,94171.0,0.053171]
[1735026418130,0.07049421,94172.0,94171.0,0.053171]
[1735026418332,0.07381724,94172.0,94171.0,0.053171]
[1735026418543,0.07081724,94172.0,94171.0,0.053171]
[1735026418743,0.01708132,94172.0,94171.0,0.053171]
[1735026419539,0.01375829,94172.0,94171.0,0.053171]
[1735026419751,0.01708132,94172.0,94171.0,0.053171]
[1735026420139,0.17631394,94172.0,94171.0,0.053171]
[1735026420344,0.17299091,94172.0,94171.0,0.053171]
[1735026420936,0.17631394,94172.0,94171.0,0.053171]
[1735026421738,0.01708132,94172.0,94171.0,0.053171]
[1735026423836,0.0170813,94172.0,94171.0,0.053171]
[1735026425344,0.01375829,94172.0,94171.0,0.053171]
[1735026428542,0.17299091,94172.0,94171.0,0.053171]
[1735026429860,0.01375829,94172.0,94171.0,0.053171]
[1735026430248,0.37455829,94172.0,94164.0,0.053175]
[1735026430448,0.053173,94169.0,94164.0,0.053175]
[1735026432049,0.054173,94169.0,94164.0,0.053175]
[1735026432351,0.15923262,94168.0,94164.0,0.053175]
[1735026433346,0.053174,94167.0,94160.0,0.08709318]
[1735026433552,0.3608,94164.0,94160.0,0.08709318]
[1735026433749,0.3608,94164.0,94160.0,0.01596]
[1735026434757,0.3608,94164.0,94160.0,0.01696]
[1735026435156,0.3608,94164.0,94160.0,0.01796]
[1735026435356,0.00332325,94163.0,94160.0,0.01796]
[1735026436258,0.00332327,94163.0,94160.0,0.01796]
[1735026436650,0.00332327,94163.0,94160.0,0.01696]
[1735026436855,0.00332327,94163.0,94160.0,0.01896]
[1735026437358,0.52059263,94164.0,94160.0,0.01896]
[1735026437559,0.00332326,94163.0,94160.0,0.01896]
[1735026437760,0.00332326,94163.0,94161.0,0.01596]
[1735026437958,0.16255588,94163.0,94161.0,0.01596]
[1735026438355,0.16255588,94163.0,94160.0,0.003]
[1735026438561,0.16255588,94163.0,94162.0,0.01596]
[1735026439159,0.00332326,94163.0,94162.0,0.01596]
[1735026440061,0.00332326,94163.0,94162.0,0.01796]
[1735026440253,0.16272504,94163.0,94162.0,0.01796]
[1735026440456,0.15940178,94163.0,94162.0,0.01796]
[1735026440653,0.16272502,94163.0,94162.0,0.01796]
[1735026440849,0.15940178,94163.0,94162.0,0.071136]
[1735026441062,0.15940178,94163.0,94162.0,0.072136]
[1735026441362,0.22249231,94183.0,94181.0,0.053166]
[1735026441759,0.41451901,94193.0,94188.0,0.053162]
[1735026441760,0.22249231,94189.0,94188.0,0.053162]
[1735026442157,0.22249231,94189.0,94188.0,0.16765167]
[1735026442666,0.16079231,94189.0,94188.0,0.16765167]
[1735026442864,0.25242387,94196.0,94195.0,0.053158]
[1735026443161,0.25242387,94196.0,94195.0,0.413958]
[1735026443462,0.25242387,94196.0,94195.0,0.52460917]
[1735026443664,0.3608,94208.0,94205.0,0.053152]
[1735026443860,0.413944,94221.0,94209.0,0.05315]
[1735026444059,0.413944,94221.0,94210.0,0.07113318]
[1735026444265,0.413944,94221.0,94210.0,0.10830332]
[1735026444458,0.053144,94220.0,94210.0,0.10830332]
[1735026444662,0.053144,94220.0,94209.0,0.05315]
[1735026445969,0.053144,94220.0,94203.0,0.3608]
[1735026445970,0.057144,94220.0,94204.0,0.0379]
[1735026446161,0.057144,94220.0,94210.0,0.053149]
[1735026446673,0.057144,94220.0,94214.0,0.053147]
[1735026447260,0.058144,94220.0,94214.0,0.053147]
[1735026448067,0.057144,94220.0,94214.0,0.053147]
[1735026448258,0.054144,94220.0,94214.0,0.053147]
[1735026448460,0.058144,94220.0,94214.0,0.053147]
[1735026457761,0.058144,94220.0,94214.0,0.069107]
[1735026458757,0.005,94220.0,94214.0,0.069107]
[1735026458970,0.053144,94219.0,94214.0,0.069107]
[1735026460062,0.053153,94203.0,94193.0,0.069119]
[1735026460268,0.053156,94199.0,94193.0,0.053159]
[1735026460665,0.053157,94197.0,94189.0,0.0406]
[1735026460872,0.053157,94197.0,94189.0,0.093761]
[1735026461558,0.053157,94197.0,94193.0,0.001]
[1735026462673,0.053158,94196.0,94193.0,0.001]
[1735026462875,0.053158,94195.0,94193.0,0.001]
[1735026463058,0.053158,94195.0,94189.0,0.0406]
[1735026463263,0.053158,94195.0,94189.0,0.0416]
[1735026463873,0.053158,94195.0,94193.0,0.001]
[1735026464274,0.053158,94195.0,94189.0,0.0406]
[1735026464571,0.060158,94195.0,94189.0,0.0416]
[1735026464976,0.053158,94195.0,94189.0,0.0406]
[1735026465874,0.056158,94195.0,94189.0,0.0406]
[1735026466968,0.063158,94195.0,94189.0,0.0416]
[1735026467163,0.063158,94195.0,94192.0,0.3608]
[1735026467164,0.01,94195.0,94192.0,0.3608]
[1735026467364,0.01,94195.0,94193.0,0.053159]
[1735026467564,0.01,94195.0,94193.0,0.093559]
[1735026467982,0.053151,94208.0,94194.0,0.12239972]
[1735026468275,0.053151,94208.0,94194.0,0.053158]
[1735026468276,0.004,94195.0,94194.0,0.053158]
[1735026468974,0.053151,94208.0,94193.0,0.0404]
[1735026469375,0.053151,94208.0,94198.0,0.053156]
[1735026470172,0.055151,94208.0,94198.0,0.053156]
[1735026470580,0.053151,94208.0,94198.0,0.053156]
[1735026470777,0.002,94208.0,94198.0,0.053156]
[1735026470982,0.053152,94206.0,94199.0,0.053155]
[1735026472676,0.3608,94204.0,94198.0,0.1887397]
[1735026472869,0.053154,94202.0,94200.0,0.1887397]
[1735026474175,0.053154,94202.0,94198.0,0.1887397]
[1735026475177,0.00156001,94204.0,94198.0,0.1887397]
[1735026475377,0.053151,94208.0,94198.0,0.1887397]
[1735026475577,0.053151,94208.0,94200.0,0.1887397]
[1735026476281,0.002,94202.0,94201.0,0.053154]
[1735026476686,0.001,94204.0,94203.0,0.053153]
[1735026477677,0.001,94204.0,94203.0,0.069113]
[1735026477878,0.002,94208.0,94206.0,0.053151]
[1735026478081,0.002,94208.0,94207.0,0.0416]
[1735026478584,0.053148,94213.0,94207.0,0.05756]
[1735026479476,0.053148,94213.0,94207.0,0.05956]
[1735026480184,0.053148,94213.0,94209.0,0.18945059]
[1735026481585,0.053148,94213.0,94210.0,0.18945059]
[1735026484480,0.053148,94213.0,94211.0,0.18945059]
[1735026485683,0.053148,94213.0,94210.0,0.24260059]
[1735026488890,0.053148,94213.0,94211.0,0.18945059]
[1735026490383,0.053148,94213.0,94210.0,0.05315]
[1735026492912,0.053149,94212.0,94210.0,0.05315]
[1735026494093,0.053149,94212.0,94210.0,0.05515]
[1735026500411,0.053149,94212.0,94210.0,0.002]
[1735026510027,0.053149,94212.0,94210.0,0.25476414]
[1735026517606,0.053149,94212.0,94210.0,0.30791414]
[1735026519516,0.12751502,94211.0,94210.0,0.05515]
[1735026522408,0.18066402,94212.0,94210.0,0.05515]
[1735026523915,0.12751502,94212.0,94210.0,0.05515]
[1735026524115,0.1900148,94226.0,94225.0,0.053142]
[1735026525625,0.09551816,94229.0,94221.0,0.31668019]
[1735026525812,0.09551816,94229.0,94227.0,0.05314]
[1735026526713,0.06406425,94237.0,94227.0,0.05314]
[1735026526714,0.09551816,94228.0,94227.0,0.05314]
[1735026527820,0.09551816,94228.0,94227.0,0.05414]
[1735026528227,0.09751816,94229.0,94227.0,0.05414]
[1735026528524,0.09551816,94229.0,94227.0,0.05414]
[1735026529422,0.09551816,94231.0,94228.0,0.05314]
[1735026529619,0.09551816,94231.0,94227.0,0.001]
[1735026529818,0.09551816,94231.0,94229.0,0.05314]
[1735026530622,0.09551816,94232.0,94229.0,0.24242609]
[1735026530820,0.09551816,94232.0,94230.0,0.053139]